bitfinex/quotes_ETHUSD_20241013
["timestamp","ask_amount","ask_price","bid_price","bid_amount"]
[1728831215764,0.18796487,2451.9,2451.8,4.07851]
[1728831217187,1.03263292,2451.9,2451.8,4.07851]
[1728831217486,1.99176282,2451.9,2451.8,4.07851]
[1728831218254,1.99177236,2451.9,2451.8,4.07851]
[1728831219958,1.14710431,2451.9,2451.8,4.07851]
[1728831220151,0.18796487,2451.9,2451.8,4.07851]
[1728831220396,1.99185719,2451.9,2451.8,4.07851]
[1728831220591,1.99185719,2451.9,2451.7,4.07865]
[1728831220890,1.03263292,2451.9,2451.7,8.15737]
[1728831221497,1.03263292,2451.9,2451.8,4.07863]
[1728831221693,1.99181635,2451.9,2451.8,4.07863]
[1728831223291,1.14708989,2451.9,2451.8,4.07863]
[1728831223588,0.18796487,2451.9,2451.8,4.07863]
[1728831224590,0.84466805,2452.1,2451.7,4.07865]
[1728831224792,0.18784516,2452.0,2451.9,4.07846]
[1728831224998,1.03251321,2452.0,2451.9,4.07846]
[1728831225302,0.18784516,2452.0,2451.9,4.07846]
[1728831225455,1.03251321,2452.0,2451.9,4.07846]
[1728831225657,0.18784516,2452.0,2451.9,4.07846]
[1728831225852,1.99167358,2452.0,2451.9,4.07846]
[1728831227392,0.18784516,2452.0,2451.9,4.07846]
[1728831228466,1.03251321,2452.0,2451.9,4.07846]
[1728831228791,1.991657,2452.0,2451.9,4.07846]
[1728831229296,1.99164746,2452.0,2451.9,4.07846]
[1728831229597,1.99169033,2452.0,2451.9,4.07846]
[1728831229753,0.18784516,2452.0,2451.9,4.07846]
[1728831229959,1.03251321,2452.0,2451.9,4.07846]
[1728831230197,1.99168927,2452.0,2451.9,4.07846]
[1728831230400,0.18784516,2452.0,2451.9,4.07846]
[1728831230595,1.03251321,2452.0,2451.9,4.07846]
[1728831230817,0.18784516,2452.0,2451.9,4.07846]
[1728831231892,1.14720914,2452.0,2451.9,4.07846]
[1728831232215,0.18784516,2452.0,2451.9,5.015199]
[1728831232419,0.18784516,2452.0,2451.9,5.565199]
[1728831232591,0.84466805,2452.4,2452.0,0.55]
[1728831232791,1.80422555,2452.4,2452.3,5.2881]
[1728831232991,0.84466805,2452.4,2452.3,5.2881]
[1728831233192,0.84466805,2452.6,2452.4,4.07763]
[1728831233390,0.84466805,2452.6,2452.5,4.07747]
[1728831233602,0.84466805,2452.7,2452.6,4.0773]
[1728831233820,1.26619028,2452.8,2452.6,4.0773]
[1728831233821,0.84466805,2452.8,2452.7,4.07713]
[1728831234115,0.84466805,2453.0,2452.9,4.0768]
[1728831234274,0.84466805,2453.1,2452.9,4.0768]
[1728831234481,0.84466805,2453.2,2453.1,4.07647]
[1728831234790,0.84466805,2453.4,2453.3,4.07614]
[1728831234989,0.84522848,2453.4,2453.3,4.07614]
[1728831235208,1.26619028,2453.4,2453.3,4.07614]
[1728831235393,1.80970492,2453.4,2453.3,4.07614]
[1728831235595,1.80967637,2453.4,2453.3,4.07614]
[1728831235920,1.80969115,2453.4,2453.3,4.07614]
[1728831236222,1.80928609,2453.4,2453.3,4.07614]
[1728831237393,0.8448531,2453.6,2453.4,4.07597]
[1728831237720,0.8448531,2453.6,2453.5,4.07581]
[1728831237880,2.2299553,2453.7,2453.4,4.07585]
[1728831238078,0.84428023,2453.5,2453.4,4.07585]
[1728831238311,1.80804525,2453.5,2453.4,4.07585]
[1728831238819,0.96376502,2453.5,2453.4,4.07585]
[1728831239189,1.80811687,2453.5,2453.4,4.07585]
[1728831239392,0.84435185,2453.6,2453.5,4.07581]
[1728831240118,2.23801988,2453.7,2453.6,4.07564]
[1728831240306,2.23801988,2453.7,2453.5,4.07581]
[1728831240307,2.74709509,2453.7,2453.5,4.07581]
[1728831240519,2.2382408,2453.6,2453.5,4.07581]
[1728831241427,1.81653039,2453.6,2453.5,4.07581]
[1728831241927,0.84447987,2453.7,2453.5,5.22281]
[1728831242235,1.26619028,2453.7,2453.6,4.07564]
[1728831242464,0.97187628,2453.7,2453.6,4.07564]
[1728831242731,1.26619028,2453.8,2453.7,4.07547]
[1728831243146,0.97158379,2453.8,2453.7,4.07547]
[1728831243345,1.26639112,2453.8,2453.7,4.07547]
[1728831243856,2.23768579,2453.8,2453.7,4.07547]
[1728831244550,0.97129467,2453.8,2453.7,4.07547]
[1728831244747,0.84366574,2453.9,2453.8,4.07531]
[1728831244908,0.84366574,2454.0,2453.9,4.07514]
[1728831245260,0.84366574,2454.1,2454.0,4.07497]
[1728831245415,1.81463589,2454.1,2454.0,4.07497]
[1728831245615,0.84366574,2454.1,2454.0,4.07497]
[1728831246414,0.84366574,2454.2,2454.0,4.07497]
[1728831246613,0.84366574,2454.2,2454.1,4.07481]
[1728831246822,1.81870557,2454.2,2454.1,4.07481]
[1728831247329,0.84366574,2454.3,2454.2,4.07464]
[1728831247532,1.81834353,2454.3,2454.2,4.07464]
[1728831248123,1.81833525,2454.3,2454.0,4.07497]
[1728831248317,1.85427205,2454.3,2454.0,4.07497]
[1728831249867,1.85427205,2454.3,2453.9,4.07508]
[1728831250432,1.85427205,2454.3,2453.0,4.07655]
[1728831250433,1.1861,2454.0,2453.3,4.07602]
[1728831250746,4.14517509,2453.8,2453.5,4.07578]
[1728831251430,4.14517509,2453.8,2453.6,4.07552]
[1728831251931,2.02976574,2454.0,2453.7,4.07547]
[1728831252158,1.1861,2454.0,2453.7,4.07547]
[1728831252475,4.98884083,2454.1,2453.7,4.07547]
[1728831252632,2.02976574,2454.2,2453.7,4.07538]
[1728831252829,9.16427205,2454.3,2453.6,1.147]
[1728831253046,5.33127509,2454.4,2454.1,4.07475]
[1728831253228,6.07540829,2454.4,2454.0,4.07496]
[1728831253927,6.07540829,2454.4,2453.9,4.07503]
[1728831254124,5.26107,2454.0,2453.5,4.0757]
[1728831254571,5.26107,2454.0,2453.5,4.0758]
[1728831254572,4.14517509,2453.8,2453.5,4.0758]
[1728831255569,4.14517509,2453.8,2453.5,4.07572]
[1728831256670,4.14517509,2453.8,2453.4,4.07597]
[1728831256977,4.14517509,2453.8,2453.5,4.0758]
[1728831257553,5.0858016,2453.8,2453.3,4.07598]
[1728831257832,3.50843327,2453.5,2453.1,5.18885]
[1728831258058,3.50843327,2453.5,2453.2,4.07622]
[1728831258485,3.50843327,2453.5,2453.3,4.07613]
[1728831258651,3.50843327,2453.5,2453.2,4.07627]
[1728831258850,3.50843327,2453.5,2453.3,4.07612]
[1728831259081,1.1873,2453.6,2453.3,8.15218]
[1728831259236,1.1873,2453.6,2453.4,4.07596]
[1728831259436,1.1873,2453.6,2453.2,4.0763]
[1728831259675,0.18369437,2453.5,2453.2,4.0763]
[1728831259975,0.18369437,2453.5,2453.3,4.076]
[1728831260474,0.18369437,2453.5,2453.2,4.07629]
[1728831260673,3.69212764,2453.5,2453.2,4.07629]
[1728831261586,3.50843327,2453.3,2453.0,4.0765]
[1728831261828,3.50843327,2453.3,2452.9,4.07679]
[1728831262102,3.50843327,2453.1,2452.6,4.07722]
[1728831262462,0.18358133,2453.0,2452.6,4.07722]
[1728831262863,3.50843327,2452.9,2452.5,4.07737]
[1728831263259,0.18358133,2452.8,2452.5,4.07737]
[1728831263499,0.18358133,2452.8,2452.4,5.18999]
[1728831263500,0.18358133,2452.8,2452.6,4.07729]
[1728831263972,0.18358133,2452.8,2452.7,4.07713]
[1728831264172,3.50843327,2453.1,2452.7,4.07713]
[1728831264467,3.50843327,2453.1,2452.6,4.07729]
[1728831264690,0.18330867,2453.0,2452.8,8.15382]
[1728831264872,0.18330867,2453.0,2452.8,4.07686]
[1728831265071,0.18330867,2453.0,2452.6,4.07717]
[1728831265072,0.18330867,2453.0,2452.7,4.07713]
[1728831265470,0.18330867,2453.0,2452.8,4.07696]
[1728831265670,0.18330867,2453.0,2452.9,4.0768]
[1728831265869,1.1873,2453.2,2453.0,4.07658]
[1728831266210,0.18330867,2453.1,2453.0,4.07658]
[1728831266557,3.50843327,2453.3,2453.0,4.07658]
[1728831266762,0.18328207,2453.1,2453.0,4.07658]
[1728831266962,1.1873,2453.4,2453.1,4.07636]
[1728831267364,1.1873,2453.4,2453.0,4.07658]
[1728831267861,3.50843327,2453.3,2453.0,4.07658]
[1728831268086,3.50843327,2453.3,2453.0,4.07656]
[1728831268607,1.1873,2453.4,2453.0,4.07656]
[1728831268763,1.1873,2453.4,2453.1,4.0764]
[1728831269482,0.84366574,2453.5,2453.1,0.815317]
[1728831269665,0.84366574,2453.6,2453.3,4.07604]
[1728831270007,1.81980646,2453.6,2453.4,4.07586]
[1728831270187,5.53939901,2453.7,2453.4,4.07586]
[1728831270391,5.53939901,2453.7,2453.5,4.07579]
[1728831270984,5.53939901,2453.7,2453.6,4.07564]
[1728831270985,0.84366574,2453.7,2453.6,4.07564]
[1728831271320,1.26639112,2453.8,2453.4,4.0759]
[1728831271321,0.84366574,2453.8,2453.4,4.0759]
[1728831271605,1.82043579,2453.8,2453.5,4.07573]
[1728831272016,1.82043579,2453.8,2453.4,8.15177]
[1728831272609,1.82043579,2453.8,2453.2,1.1125]
[1728831272610,0.84366574,2453.7,2453.2,5.18868]
[1728831272905,4.69573327,2453.5,2453.2,4.07618]
[1728831273511,5.53939901,2453.5,2453.2,4.07618]
[1728831274183,9.61520901,2453.5,2453.0,4.07654]
[1728831274376,9.61520901,2453.5,2453.0,8.15309]
[1728831274377,1.82118459,2453.4,2453.0,8.15309]
[1728831274576,0.84366574,2453.4,2453.0,4.07654]
[1728831274767,1.82156437,2453.4,2453.0,4.07654]
[1728831275002,5.51363628,2453.3,2453.0,4.07654]
[1728831275321,1.82152859,2453.2,2453.0,4.07654]
[1728831275808,0.18366777,2453.1,2452.9,1.1125]
[1728831276019,0.18366777,2453.1,2452.9,5.18922]
[1728831276197,0.18366777,2453.1,2452.9,1.1125]
[1728831276523,1.94736574,2453.0,2452.6,4.07717]
[1728831276831,1.94736574,2453.0,2452.4,5.27423]
[1728831276832,0.84611034,2452.8,2452.4,4.07761]
[1728831276980,4.35454361,2452.7,2452.4,4.07761]
[1728831277179,1.82488482,2452.6,2452.2,5.27454]
[1728831277428,5.33310219,2452.5,2452.2,4.07784]
[1728831277589,4.35454361,2452.5,2452.3,4.0778]
[1728831277931,2.42841782,2452.4,2452.0,4.0783]
[1728831278101,2.42841782,2452.4,2451.8,4.07854]
[1728831278102,3.50843327,2452.1,2451.7,1.1967]
[1728831278427,4.35462749,2451.9,2451.6,4.07896]
[1728831278723,0.84619422,2451.9,2451.8,4.07863]
[1728831279021,0.84619422,2452.0,2451.9,4.07846]
[1728831279225,1.82475921,2452.0,2451.9,4.07846]
[1728831279984,0.84619422,2452.1,2451.9,4.07846]
[1728831280207,1.82437123,2452.0,2451.9,4.07846]
[1728831280410,0.84619422,2452.1,2451.9,4.07846]
[1728831280796,1.82384261,2452.0,2451.7,4.07871]
[1728831280996,1.82384261,2452.0,2451.2,4.07955]
[1728831280997,1.94989422,2451.8,2451.1,1.1967]
[1728831281300,0.84619422,2451.8,2451.7,4.0788]
[1728831281618,4.77482439,2451.9,2451.7,4.0788]
[1728831281619,4.35462749,2451.9,2451.7,4.0788]
[1728831281837,4.35462749,2451.9,2451.5,4.079]
[1728831281987,4.35462749,2451.9,2451.6,4.07894]
[1728831282319,1.82309766,2451.8,2451.5,4.079]
[1728831282621,3.50843327,2451.7,2451.3,4.07934]
[1728831283013,3.50843327,2451.7,2451.2,4.07963]
[1728831283014,3.50843327,2451.5,2451.2,4.07963]
[1728831283188,3.50843327,2451.3,2451.0,0.15572919]
[1728831283500,3.50843327,2451.3,2451.0,4.23560919]
[1728831283707,3.50843327,2451.3,2451.0,0.15572919]
[1728831283910,4.35181202,2451.3,2451.0,0.15572919]
[1728831284228,3.50843327,2451.1,2451.0,0.15572919]
[1728831284389,0.84337875,2451.3,2451.0,0.15572919]
[1728831284390,4.35181202,2451.3,2451.0,0.15572919]
[1728831285186,4.35181202,2451.3,2451.0,4.23568919]
[1728831285387,4.35181202,2451.3,2451.0,4.23567919]
[1728831285822,0.84337875,2451.3,2451.0,0.15572919]
[1728831286020,4.15347374,2451.1,2451.0,0.15572919]
[1728831286519,8.23327374,2451.1,2451.0,0.15572919]
[1728831287210,4.0798,2451.1,2451.0,0.15572919]
[1728831287421,8.23327374,2451.1,2451.0,0.15572919]
[1728831287726,12.70279011,2451.1,2451.0,0.15572919]
[1728831287886,9.72669011,2451.1,2451.0,0.0104835]
[1728831288086,6.72669011,2451.1,2451.0,0.0104835]
[1728831288282,5.25717374,2451.1,2451.0,0.0104835]
[1728831289804,5.43863866,2451.1,2451.0,0.0104835]
[1728831290948,9.51843866,2451.1,2451.0,0.0104835]
[1728831291450,5.43863866,2451.1,2451.0,0.0104835]
[1728831292004,1.28516492,2451.1,2451.0,0.0104835]
[1728831292236,0.18146492,2451.1,2451.0,4.0904435]
[1728831292439,5.25717374,2451.4,2451.0,4.0904435]
[1728831292640,0.18141162,2451.3,2451.0,4.0904435]
[1728831292948,0.18141162,2451.3,2451.1,4.07979]
[1728831293311,0.18141162,2451.3,2451.0,0.0104835]
[1728831293515,4.15347374,2451.1,2451.0,0.0104835]
[1728831293707,4.33498533,2451.1,2451.0,0.0104835]
[1728831293908,0.18151159,2451.1,2451.0,4.0904435]
[1728831294213,6.49079711,2451.4,2451.0,4.0904435]
[1728831294413,0.94907971,2451.3,2451.0,4.0904435]
[1728831294637,1.1037,2451.4,2451.1,4.07977]
[1728831294845,0.18151159,2451.2,2451.1,4.07977]
[1728831295022,1.1037,2451.4,2451.2,4.0796]
[1728831295631,4.15347374,2451.6,2451.5,4.07913]
[1728831295817,1.1359,2451.8,2451.5,4.07913]
[1728831296016,2.89623996,2451.8,2451.5,8.15818]
[1728831296324,1.1359,2451.8,2451.7,4.0788]
[1728831296543,4.15347374,2451.9,2451.7,4.0788]
[1728831297205,4.15347374,2451.9,2451.7,4.07871]
[1728831297530,1.1359,2452.0,2451.7,8.15741]
[1728831297734,5.28937374,2452.0,2451.7,4.0787]
[1728831298557,6.22611111,2452.0,2451.7,4.0787]
[1728831299140,6.22611111,2452.0,2451.5,4.07902]
[1728831299361,6.22611111,2452.0,2451.6,4.07895]
[1728831300219,6.22611111,2452.0,2451.7,4.07877]
[1728831300523,6.22611111,2452.0,2451.8,4.07862]
[1728831300944,1.1359,2452.3,2451.9,4.07842]
[1728831301166,1.1359,2452.3,2452.1,4.07813]
[1728831301531,1.1359,2452.3,2452.2,4.07797]
[1728831301745,4.15347374,2452.5,2451.9,1.1612]
[1728831302060,4.68241111,2452.5,2452.1,8.15605]
[1728831302463,4.68241111,2452.5,2452.1,4.07802]
[1728831302634,4.68241111,2452.5,2452.2,4.07787]
[1728831302962,4.68241111,2452.5,2452.3,8.15538]
[1728831303172,4.68241111,2452.5,2452.1,4.07797]
[1728831303463,4.68241111,2452.5,2452.2,4.07785]
[1728831303631,0.58183111,2452.4,2452.1,8.15598]
[1728831304055,0.58183111,2452.4,2451.9,5.23954]
[1728831304357,0.58183111,2452.4,2452.0,4.07829]
[1728831304722,0.18107726,2452.3,2452.1,4.07812]
[1728831305066,0.18107726,2452.3,2452.0,4.07829]
[1728831305267,4.60640737,2452.5,2452.0,4.07829]
[1728831305268,4.15347374,2452.4,2452.0,4.07829]
[1728831305560,1.0570787,2452.3,2452.0,4.07829]
[1728831306053,4.56961556,2452.3,2451.8,4.07855]
[1728831306267,4.56961556,2452.3,2452.0,4.07828]
[1728831306448,0.18109059,2452.3,2452.1,4.07801]
[1728831306629,3.51253686,2452.5,2452.1,4.07798]
[1728831306846,0.18108391,2452.4,2452.2,4.07794]
[1728831307788,0.18108391,2452.4,2452.2,4.07787]
[1728831307939,0.18108391,2452.4,2452.3,4.0778]
[1728831308432,3.51253686,2452.9,2452.5,4.07745]
[1728831308661,1.98209422,2453.1,2452.5,4.07745]
[1728831308662,0.35125369,2452.8,2452.6,4.07727]
[1728831308846,4.07706,2452.8,2452.3,4.07769]
[1728831309037,3.51253686,2452.7,2452.3,4.07769]
[1728831309259,3.51253686,2452.7,2452.4,4.07763]
[1728831309462,3.51253686,2452.7,2452.5,4.07746]
[1728831309678,3.86379055,2452.7,2452.5,4.07746]
[1728831309837,0.35125369,2452.7,2452.3,4.07768]
[1728831310565,0.35125369,2452.7,2452.4,4.0776]
[1728831310987,0.35125369,2452.7,2452.3,4.07779]
[1728831311280,3.51253686,2452.8,2452.4,4.0776]
[1728831311634,3.51253686,2452.8,2452.5,4.07743]
[1728831311840,6.51253686,2453.0,2452.6,4.07722]
[1728831312051,8.4459,2453.3,2452.9,4.07672]
[1728831312485,8.4459,2453.3,2452.9,4.07671]
[1728831312642,8.4459,2453.3,2452.8,4.07695]
[1728831312643,16.03459686,2453.3,2452.8,4.07695]
[1728831312991,16.03458686,2453.3,2452.8,4.07695]
[1728831313344,11.95843686,2453.3,2452.9,4.07678]
[1728831313637,10.82253686,2453.3,2452.9,8.15347]
[1728831313842,10.82253686,2453.3,2452.9,5.23789]
[1728831314038,3.51253686,2453.1,2452.9,1.1612]
[1728831314269,4.0767,2453.0,2452.5,4.07737]
[1728831314502,3.51253686,2452.9,2452.5,4.07736]
[1728831314767,3.51253686,2452.9,2452.6,4.07722]
[1728831314973,4.07772,2452.4,2451.9,4.07835]
[1728831315170,1.1359,2452.6,2451.6,5.24008]
[1728831315171,3.51253686,2452.0,2451.6,5.24008]
[1728831315372,3.51253686,2452.0,2451.6,1.1612]
[1728831315776,5.21413,2452.1,2451.6,1.1612]
[1728831316179,3.51253686,2452.0,2451.6,1.1612]
[1728831316986,7.59086686,2452.0,2451.6,1.1612]
[1728831317404,3.51253686,2452.0,2451.6,1.1612]
[1728831317903,9.36528584,2452.1,2451.6,1.1612]
[1728831318215,9.36528584,2452.1,2451.6,5.24016]
[1728831318614,13.44356584,2452.1,2451.6,5.24016]
[1728831319115,4.07833,2452.0,2451.6,1.1612]
[1728831319289,4.07848,2451.9,2451.6,1.1612]
[1728831319693,0.17514679,2451.8,2451.6,1.1612]
[1728831320672,4.0783,2452.0,2451.6,1.1612]
[1728831320877,0.17514679,2451.9,2451.6,1.1612]
[1728831321678,0.84619422,2452.1,2451.8,4.07853]
[1728831321887,0.17506022,2452.0,2451.8,4.10176925]
[1728831322087,0.84619422,2452.2,2451.8,4.10176925]
[1728831322324,0.1746207,2452.1,2451.8,4.10176925]
[1728831322929,0.1746207,2452.1,2452.0,4.0783]
[1728831323087,0.84619422,2452.3,2452.1,4.07811]
[1728831323288,5.41754696,2452.4,2452.1,4.07811]
[1728831323289,0.17472726,2452.2,2452.1,4.07811]
[1728831323532,4.99735006,2452.4,2452.1,4.07811]
[1728831323684,0.17472726,2452.3,2452.1,4.07811]
[1728831324000,0.17472726,2452.3,2452.2,4.07797]
[1728831324628,0.84619422,2452.6,2452.2,4.07797]
[1728831324828,0.17498037,2452.3,2452.2,4.07797]
[1728831325288,0.84619422,2452.6,2452.2,4.07797]
[1728831325489,0.17498037,2452.5,2452.3,4.0778]
[1728831326588,0.17498037,2452.5,2452.4,4.07763]
[1728831326817,0.17498037,2452.5,2452.3,4.0777]
[1728831327225,0.84619422,2452.7,2452.3,4.0777]
[1728831327435,0.17519343,2452.4,2452.3,4.0777]
[1728831327587,0.84619422,2452.7,2452.3,4.0777]
[1728831327792,0.17519343,2452.4,2452.1,4.078]
[1728831328102,1.82186674,2452.6,2452.1,8.15604]
[1728831328103,0.1752334,2452.3,2452.1,8.15604]
[1728831328322,2.03419422,2452.5,2452.1,4.078]
[1728831328509,0.1752334,2452.4,2452.1,8.15603]
[1728831328716,0.1752334,2452.4,2452.2,4.07792]
[1728831329232,0.1752334,2452.4,2452.3,4.0778]
[1728831329418,0.1752334,2452.4,2452.2,4.07797]
[1728831329592,9.07449006,2452.7,2452.2,4.07797]
[1728831329793,0.1752001,2452.3,2452.2,4.07797]
[1728831329996,9.07449006,2452.7,2452.2,4.07797]
[1728831330530,0.1752001,2452.6,2452.2,4.07797]
[1728831331908,0.1752001,2452.6,2452.0,1.1432]
[1728831331909,4.2525901,2452.6,2452.0,1.1432]
[1728831332106,1.188,2452.3,2451.9,4.07838]
[1728831332332,0.12520677,2452.2,2451.9,4.07838]
[1728831332631,1.188,2452.3,2451.9,4.07838]
[1728831332833,0.1735401,2452.1,2452.0,5.2214]
[1728831333039,1.69006162,2452.7,2452.4,4.07763]
[1728831333040,0.84619422,2452.6,2452.4,4.07763]
[1728831333266,11.498,2453.1,2452.7,4.07713]
[1728831333267,0.84619422,2453.0,2452.7,4.07713]
[1728831333910,2.03419422,2453.1,2452.7,4.07713]
[1728831334144,1.82247668,2453.0,2452.8,4.07697]
[1728831334303,0.84619422,2453.1,2452.8,4.07697]
[1728831334840,0.17365997,2453.0,2452.9,4.0768]
[1728831335542,0.84619422,2453.2,2453.0,4.07661]
[1728831335708,0.84619422,2453.2,2453.1,4.07647]
[1728831335902,0.84619422,2453.3,2453.1,4.07647]
[1728831336239,0.84619422,2453.4,2453.2,4.0763]
[1728831336742,0.84619422,2453.4,2453.1,4.07647]
[1728831337102,1.82302399,2453.3,2453.1,4.07647]
[1728831337303,0.84619422,2453.3,2453.2,4.0763]
[1728831337503,1.82181281,2453.3,2453.2,4.0763]
[1728831337818,1.26639112,2453.4,2453.3,4.07614]
[1728831338158,0.84523241,2453.4,2453.3,4.07614]
[1728831338363,1.8223191,2453.4,2453.3,4.07614]
[1728831339331,0.84523241,2453.5,2453.4,4.07597]
[1728831339539,0.84541232,2453.5,2453.4,4.07597]
[1728831339937,1.8226956,2453.5,2453.4,4.07597]
[1728831340151,0.84541232,2453.5,2453.4,4.07597]
[1728831340441,2.2436744,2453.6,2453.5,4.07581]
[1728831340442,0.84541232,2453.6,2453.5,4.07581]
[1728831340614,0.84551941,2453.6,2453.5,4.07581]
[1728831341014,1.82292451,2453.6,2453.5,4.07581]
[1728831341812,1.26639112,2453.6,2453.4,4.07596]
[1728831342155,4.35422148,2453.5,2453.4,4.07596]
[1728831342322,1.82316207,2453.5,2453.4,4.07596]
[1728831342527,0.84575697,2453.5,2453.4,4.07596]
[1728831342731,0.84575697,2453.6,2453.4,4.07596]
[1728831342953,0.84575697,2453.5,2453.4,4.07596]
[1728831343454,0.97785206,2453.6,2453.5,4.07581]
[1728831343455,0.84575697,2453.6,2453.5,4.07581]
[1728831343619,1.26639112,2453.8,2453.6,4.07564]
[1728831343815,1.26639112,2453.7,2453.6,4.07564]
[1728831344052,1.82381944,2453.7,2453.6,4.07564]
[1728831344747,0.84593517,2453.8,2453.6,4.07564]
[1728831344960,0.84593517,2453.8,2453.7,4.07547]
[1728831345158,0.97785369,2453.8,2453.7,4.07547]
[1728831345317,1.82376555,2453.8,2453.7,4.07547]
[1728831345728,0.97785369,2453.8,2453.6,4.07563]
[1728831345940,1.82364609,2453.7,2453.6,4.07563]
[1728831346327,4.77485563,2453.9,2453.6,4.07563]
[1728831346328,0.8457924,2453.8,2453.6,4.07563]
[1728831346534,5.3315741,2453.7,2453.5,4.07578]
[1728831346748,4.35425691,2453.7,2453.5,4.07578]
[1728831347469,1.82286774,2453.6,2453.5,4.07578]
[1728831347853,1.82286774,2453.6,2453.4,4.07589]
[1728831348067,0.8457924,2453.6,2453.4,4.07589]
[1728831349705,0.17475812,2453.5,2453.4,4.07589]
[1728831350470,6.10238215,2453.5,2453.0,4.07653]
[1728831350716,6.10238215,2453.5,2452.9,5.2212]
[1728831350717,3.50846451,2453.2,2452.9,8.15341]
[1728831350869,3.50846451,2453.2,2452.9,4.0767]
[1728831351203,0.17475149,2453.1,2452.9,4.0767]
[1728831351612,3.50846451,2453.0,2452.7,4.07702]
[1728831351765,4.35425691,2453.0,2452.5,1.1445]
[1728831351966,4.35425691,2453.0,2451.7,7.58726451]
[1728831351967,3.50846451,2452.8,2452.4,4.0775]
[1728831352225,4.63126451,2452.6,2452.3,4.07779]
[1728831352506,0.17454526,2452.5,2452.3,4.07779]
[1728831352715,0.17454526,2452.5,2452.4,4.07749]
[1728831353568,4.35425691,2452.8,2452.5,4.07741]
[1728831353775,0.8457924,2452.8,2452.5,4.07741]
[1728831355302,0.8457924,2452.8,2452.4,4.07749]
[1728831355511,0.8457924,2452.8,2452.6,8.1546]
[1728831355686,0.8457924,2452.8,2452.6,8.15452]
[1728831355894,0.8457924,2452.8,2452.6,4.07722]
[1728831357219,0.8457924,2452.8,2452.6,8.15445]
[1728831357383,0.8457924,2452.8,2452.6,4.07722]
[1728831359848,0.8457924,2452.8,2452.4,5.22204]
[1728831360007,0.8457924,2452.8,2452.5,4.07746]
[1728831361808,0.8457924,2452.8,2452.6,4.07722]
[1728831362455,1.82302781,2452.7,2452.6,4.07722]
[1728831363203,1.82302781,2452.7,2452.6,5.24182]
[1728831363433,0.8457924,2452.8,2452.7,4.07713]
[1728831363634,1.82331323,2452.8,2452.7,4.07713]
[1728831363837,0.8457924,2452.9,2452.8,4.07697]
[1728831364049,1.82334541,2452.9,2452.8,4.07558743]
[1728831364427,1.26639112,2453.1,2452.8,4.07558743]
[1728831364428,0.8457924,2453.0,2452.8,5.00731917]
[1728831364633,0.8457924,2453.1,2452.9,4.0768]
[1728831365031,1.26639112,2453.2,2453.1,4.07647]
[1728831365032,0.8457924,2453.2,2453.1,4.07647]
[1728831365233,0.84596836,2453.2,2453.1,4.07647]
[1728831365542,1.26639112,2453.2,2453.1,4.07647]
[1728831365868,1.189,2453.1,2452.5,4.07736]
[1728831366064,0.84603915,2452.8,2452.5,8.15465]
[1728831366268,0.84603915,2452.8,2452.6,4.0773]
[1728831367058,0.84603915,2452.8,2452.4,8.15509]
[1728831367298,0.84603915,2452.8,2452.3,1.1646]
[1728831367299,6.18345021,2452.7,2452.3,4.07778]
[1728831367455,6.18345021,2452.7,2452.2,4.07784]
[1728831367456,0.84603915,2452.5,2452.2,4.07784]
[1728831367662,0.84603915,2452.4,2452.2,4.07784]
[1728831367860,0.84603915,2452.4,2452.3,4.0778]
[1728831368186,1.8245926,2452.4,2452.3,4.0778]
[1728831368492,1.8245926,2452.4,2452.2,4.07784]
[1728831368796,1.82521242,2452.3,2452.2,4.07784]
[1728831369096,0.84665897,2452.3,2452.2,4.07784]
[1728831369768,1.8254212,2452.3,2452.2,4.07784]
[1728831370093,1.82528552,2452.3,2452.2,4.07784]
[1728831370302,0.97876223,2452.3,2452.2,4.07784]
[1728831370599,1.82553121,2452.3,2452.2,4.07784]
[1728831370961,1.82552755,2452.3,2452.2,4.07797]
[1728831371115,1.26905873,2452.4,2452.3,4.0778]
[1728831371116,0.84676532,2452.4,2452.3,4.0778]
[1728831371315,1.6920783,2452.6,2452.4,4.07763]
[1728831371316,0.84676532,2452.6,2452.4,4.07763]
[1728831371476,0.84676532,2452.6,2452.5,4.07747]
[1728831371814,0.84676532,2452.7,2452.6,4.0773]
[1728831372888,1.189,2452.6,2452.5,4.07747]
[1728831373210,1.66323249,2452.6,2452.3,4.07771]
[1728831373392,0.84682766,2452.4,2452.3,4.07771]
[1728831373595,1.27026382,2452.4,2452.3,4.07771]
[1728831373817,2.24920808,2452.4,2452.3,4.07771]
[1728831374012,2.24917464,2452.4,2452.3,4.07771]
[1728831374822,1.27026382,2452.4,2452.3,4.07771]
[1728831374978,2.24925174,2452.4,2452.3,4.07771]
[1728831376995,0.97898792,2452.4,2452.3,4.07771]
[1728831377204,0.84680864,2452.4,2452.3,4.07771]
[1728831377383,0.97898792,2452.4,2452.3,4.07771]
[1728831377914,1.82577957,2452.4,2452.3,4.07771]
[1728831378288,0.84679165,2452.4,2452.3,4.07771]
[1728831378785,1.82576151,2452.4,2452.3,4.07771]
[1728831379721,1.99990014,2452.4,2452.3,4.07771]
[1728831382531,0.17413863,2452.4,2452.3,4.07771]
[1728831382897,1.15169573,2452.4,2452.3,4.07771]
[1728831383097,1.15160702,2452.4,2452.3,4.07771]
[1728831383402,0.17413863,2452.4,2452.3,4.07771]
[1728831384340,1.02093028,2452.4,2452.3,4.07771]
[1728831384636,1.99826192,2452.4,2452.3,4.07771]
[1728831385301,1.25659593,2452.4,2452.3,4.07771]
[1728831385653,0.16833401,2452.4,2452.3,6.095075]
[1728831385959,1.6920783,2452.8,2452.3,6.095075]
[1728831385960,1.27026382,2452.7,2452.3,2.017365]
[1728831386134,1.27026382,2452.7,2452.6,4.0773]
[1728831386437,0.97401922,2452.7,2452.6,4.0773]
[1728831386744,1.6920783,2452.9,2452.6,4.892775]
[1728831386745,1.27026382,2452.9,2452.6,4.892775]
[1728831387031,1.27026382,2452.9,2452.8,4.07697]
[1728831387434,1.6920783,2452.9,2452.8,4.07697]
[1728831387742,3.96546725,2452.9,2452.8,4.07697]
[1728831388041,3.96546725,2452.9,2452.6,4.0773]
[1728831388042,2.27338895,2452.9,2452.6,4.0773]
[1728831388248,4.77992888,2452.7,2452.6,4.0773]
[1728831388542,3.9646827,2452.7,2452.6,4.0773]